{"text_format":"3","workbook":"xlsx","n_sheets":4,"sheets":["Início","PARÂMETROS DO PROJETO","DETALHES DO PROJETO","TOTAIS DO PROJETO"],"not_rendered":{"charts":2,"defined_names":3,"pivot_tables":1},"read":"whole","date_system":"1900"}

{"sheet":"Início","index":0,"n_rows":8,"n_cols":2,"rows_kept":8}
[null,"ACERCA DESTE MODELO"]
[]
[null,"Utilize este livro para controlar os Parâmetros do Projeto, os Detalhes do Projeto e os Totais do Projeto durante o Planeamento de Projetos para Sociedades de Advogados."]
[null,"Preencha o Nome da Empresa na folha de cálculo Parâmetros do Projeto e essa informação é atualizada automaticamente nas outras folhas de cálculo."]
[null,"Introduza informações na folha de cálculo Parâmetros do Projeto para atualizar gráficos de colunas e a folha de cálculo Detalhes do Projeto. A tabela dinâmica na folha de cálculo Totais do Projeto é atualizada automaticamente."]
[null,"Nota:  "]
[null,"Encontram-se Instruções adicionais na coluna A de cada folha de cálculo. O texto encontra-se intencionalmente oculto. Para remover o texto, selecione a coluna A e, em seguida, selecione Eliminar. Para mostrar o texto, selecione a coluna A e, em seguida, mude a cor do tipo de letra."]
[null,"Para saber mais sobre as tabelas nas folhas de cálculo, prima Shift+F10 numa tabela, selecione a opção Tabela e, em seguida, selecione Texto Alternativo. Para a tabela dinâmica na folha de cálculo Totais do Projeto, prima Shift+F10 na tabela, selecione Opções da Tabela Dinâmica e, em seguida, selecione o separador Texto Alternativo."]

{"sheet":"PARÂMETROS DO PROJETO","index":1,"n_rows":19,"n_cols":9,"rows_kept":19}
["Crie Parâmetros do Projeto nesta folha de cálculo. Introduza o Nome da Empresa na célula à direita. Encontram-se instruções úteis nas células desta coluna.","Nome da Empresa"]
["O título desta folha de cálculo está na célula à direita.","Planeamento de Projetos para Sociedades de Advogados"]
["A mensagem de confidencialidade está na célula à direita.",{"$f":"B1&\" Confidencial\"","v":"Nome da Empresa Confidencial"}]
["A sugestão está na célula à direita.","As células sombreadas são calculadas automaticamente. Não precisa de introduzir dados nas mesmas."]
["Introduza os detalhes na tabela Parâmetros que começa na célula à direita. A instrução seguinte está na célula A12.","TIPO DE PROJETO","SÓCIO COMANDITADO","ADVOGADO SOCIETÁRIO","ADVOGADO DE DEFESA","ADVOGADO DE PROPRIEDADE INTELECTUAL","ADVOGADO DE INSOLVÊNCIA","SERVIÇOS ADMINISTRATIVOS","TOTAL"]
[null,"Constituição de Empresa",{"v":0.1,"d":"10%"},{"v":0.4,"d":"40%"},{"v":0,"d":"0%"},{"v":0,"d":"0%"},{"v":0,"d":"0%"},{"v":0.5,"d":"50%"},{"$f":"SUM(Parâmetros[[#This Row],[SÓCIO COMANDITADO]:[SERVIÇOS ADMINISTRATIVOS]])","v":{"v":1,"d":"100%"}}]
[null,"Aquisição de Empresa",{"v":0.1,"d":"10%"},{"v":0.4,"d":"40%"},{"v":0,"d":"0%"},{"v":0.1,"d":"10%"},{"v":0,"d":"0%"},{"v":0.4,"d":"40%"},{"$f":"SUM(Parâmetros[[#This Row],[SÓCIO COMANDITADO]:[SERVIÇOS ADMINISTRATIVOS]])","v":{"v":1,"d":"100%"}}]
[null,"Defesa de Responsabilidade por Produto",{"v":0.2,"d":"20%"},{"v":0,"d":"0%"},{"v":0.5,"d":"50%"},{"v":0,"d":"0%"},{"v":0,"d":"0%"},{"v":0.3,"d":"30%"},{"$f":"SUM(Parâmetros[[#This Row],[SÓCIO COMANDITADO]:[SERVIÇOS ADMINISTRATIVOS]])","v":{"v":1,"d":"100%"}}]
[null,"Aplicação de Patente",{"v":0.1,"d":"10%"},{"v":0,"d":"0%"},{"v":0,"d":"0%"},{"v":0.6,"d":"60%"},{"v":0,"d":"0%"},{"v":0.3,"d":"30%"},{"$f":"SUM(Parâmetros[[#This Row],[SÓCIO COMANDITADO]:[SERVIÇOS ADMINISTRATIVOS]])","v":{"v":1,"d":"100%"}}]
[null,"Ação Judicial de Colaborador",{"v":0.2,"d":"20%"},{"v":0.1,"d":"10%"},{"v":0.4,"d":"40%"},{"v":0,"d":"0%"},{"v":0,"d":"0%"},{"v":0.3,"d":"30%"},{"$f":"SUM(Parâmetros[[#This Row],[SÓCIO COMANDITADO]:[SERVIÇOS ADMINISTRATIVOS]])","v":{"v":1,"d":"100%"}}]
[null,"Insolvência",{"v":0.1,"d":"10%"},{"v":0.2,"d":"20%"},{"v":0,"d":"0%"},{"v":0,"d":"0%"},{"v":0.4,"d":"40%"},{"v":0.3,"d":"30%"},{"$f":"SUM(Parâmetros[[#This Row],[SÓCIO COMANDITADO]:[SERVIÇOS ADMINISTRATIVOS]])","v":{"v":1,"d":"100%"}}]
["Introduza as Taxas Combinadas nas células à direita, nas células C12 a H12. A instrução seguinte está na célula A14.","Taxas combinadas",{"v":350,"d":"350 €"},{"v":250,"d":"250 €"},{"v":300,"d":"300 €"},{"v":275,"d":"275 €"},{"v":225,"d":"225 €"},{"v":125,"d":"125 €"}]
[]
["O gráfico de colunas a mostrar a comparação entre o Custos Planeados e os Custos Reais está na célula à direita e o gráfico de colunas a mostrar a comparação entre as Horas Planeadas e as Horas Reais está na célula F14."]
[null,null,"SÓCIO COMANDITADO","SOCIETÁRIO","ADVOGADO DE DEFESA","PROP. INTELECTUAL","INSOLVÊNCIA","SERVIÇOS ADMINISTRATIVOS"]
[null,"CUSTOS PLANEADOS",{"$f":"SUBTOTAL(109,Detalhes[SÓCIO COMANDITADO])","v":{"v":78750,"d":"78,750.00 €"}},{"$f":"SUBTOTAL(109,Detalhes[ADVOGADO SOCIETÁRIO])","v":{"v":66250,"d":"66,250.00 €"}},{"$f":"SUBTOTAL(109,Detalhes[ADVOGADO DE DEFESA])","v":{"v":105000,"d":"105,000.00 €"}},{"$f":"SUBTOTAL(109,Detalhes[ADVOGADO DE PROPRIEDADE INTELECTUAL])","v":{"v":35750,"d":"35,750.00 €"}},{"$f":"SUBTOTAL(109,Detalhes[ADVOGADO DE INSOLVÊNCIA])","v":{"v":0,"d":"0.00 €"}},{"$f":"SUBTOTAL(109,Detalhes[SERVIÇOS ADMINISTRATIVOS])","v":{"v":66250,"d":"66,250.00 €"}}]
[null,"CUSTOS REAIS",{"$f":"SUBTOTAL(109,Detalhes[SÓCIO COMANDITADO 2])","v":{"v":79275,"d":"79,275.00 €"}},{"$f":"SUBTOTAL(109,Detalhes[ADVOGADO SOCIETÁRIO 2])","v":{"v":67375,"d":"67,375.00 €"}},{"$f":"SUBTOTAL(109,Detalhes[ADVOGADO DE DEFESA 2])","v":{"v":105600,"d":"105,600.00 €"}},{"$f":"SUBTOTAL(109,Detalhes[ADVOGADO DE PROPRIEDADE INTELECTUAL 2])","v":{"v":34650,"d":"34,650.00 €"}},{"$f":"SUBTOTAL(109,Detalhes[ADVOGADO DE INSOLVÊNCIA 2])","v":{"v":0,"d":"0.00 €"}},{"$f":"SUBTOTAL(109,Detalhes[SERVIÇOS ADMINISTRATIVOS 2])","v":{"v":67000,"d":"67,000.00 €"}}]
[null,"HORAS PLANEADAS",{"$f":"C16/$C$12","v":{"v":225,"d":"225.00"}},{"$f":"D16/$C$12","v":{"v":189.28571428571428,"d":"189.29"}},{"v":300,"d":"300.00"},{"v":102.14285714285714,"d":"102.14"},{"v":0,"d":"0.00"},{"v":189.28571428571428,"d":"189.29"}]
[null,"HORAS REAIS",{"$f":"C17/$C$12","v":{"v":226.5,"d":"226.50"}},{"$f":"D17/$C$12","v":{"v":192.5,"d":"192.50"}},{"$f":"E17/$C$12","v":{"v":301.7142857142857,"d":"301.71"}},{"$f":"F17/$C$12","v":{"v":99,"d":"99.00"}},{"$f":"G17/$C$12","v":{"v":0,"d":"0.00"}},{"$f":"H17/$C$12","v":{"v":191.42857142857142,"d":"191.43"}}]

{"sheet":"DETALHES DO PROJETO","index":2,"n_rows":10,"n_cols":25,"rows_kept":10,"merged":[[1,24,8,28]]}
["Crie os Detalhes do Projeto nesta folha de cálculo. O Nome da Empresa é atualizado automaticamente na célula à direita. Encontram-se instruções úteis nas células desta coluna. Prima a Seta Para Baixo para começar.",{"$f":"'PARÂMETROS DO PROJETO'!B1","v":"Nome da Empresa"}]
["O título desta folha de cálculo está na célula à direita e a sugestão com as Informações está na célula Y2.",{"$f":"'PARÂMETROS DO PROJETO'!B2","v":"Planeamento de Projetos para Sociedades de Advogados"},{"$nulls":22},"INFORMAÇÕES:\nPara adicionar uma linha, selecione a última célula do canto direito do corpo da tabela (não a linha de total completa) e prima a Tecla de Tabulação ou Shift+F10 na tabela onde pretende inserir a linha e selecione Inserir | Linhas da Tabela Acima/Abaixo.\nCertifique-se de que todas as linhas não utilizadas são eliminadas, dado que a tabela dinâmica TOTAIS DO PROJETO irá utilizar todas as células da tabela. Se não forem eliminadas, serão obtidos resultados incorretos."]
["A mensagem de confidencialidade está na célula à direita.",{"$f":"'PARÂMETROS DO PROJETO'!B3","v":"Nome da Empresa Confidencial"}]
["Introduza as informações na tabela Detalhes que começa na célula à direita. O Tipo de Projeto na tabela Detalhes à direita é atualizado automaticamente a partir da tabela Parâmetros na folha de cálculo Parâmetros do Projeto.","NOME DO PROJETO","TIPO DE PROJETO","INÍCIO ESTIMADO","FIM ESTIMADO","INÍCIO REAL","FIM REAL","TRABALHO ESTIMADO","TRABALHO REAL","DURAÇÃO ESTIMADA","DURAÇÃO REAL","SÓCIO COMANDITADO","ADVOGADO SOCIETÁRIO","ADVOGADO DE DEFESA","ADVOGADO DE PROPRIEDADE INTELECTUAL","ADVOGADO DE INSOLVÊNCIA","SERVIÇOS ADMINISTRATIVOS","SÓCIO COMANDITADO 2","ADVOGADO SOCIETÁRIO 2","ADVOGADO DE DEFESA 2","ADVOGADO DE PROPRIEDADE INTELECTUAL 2","ADVOGADO DE INSOLVÊNCIA 2","SERVIÇOS ADMINISTRATIVOS 2"]
[null,"Projeto 1","Constituição de Empresa",{"$f":"TODAY()","v":"2019-02-15"},{"$f":"TODAY()+60","v":"2019-04-16"},{"$f":"TODAY()+10","v":"2019-02-25"},{"$f":"TODAY()+65","v":"2019-04-21"},200,220,{"$f":"DAYS360(Detalhes[[#This Row],[INÍCIO ESTIMADO]],Detalhes[[#This Row],[FIM ESTIMADO]],FALSE)","v":61},{"$f":"DAYS360(Detalhes[[#This Row],[INÍCIO REAL]],Detalhes[[#This Row],[FIM REAL]],FALSE)","v":56},{"$f":"INDEX(Parâmetros[],MATCH(Detalhes[[#This Row],[TIPO DE PROJETO]],Parâmetros[TIPO DE PROJETO],0),MATCH(Detalhes[[#Headers],[SÓCIO COMANDITADO]],Parâmetros[#Headers],0))*INDEX('PARÂMETROS DO PROJETO'!$B$12:$H$12,1,MATCH(Detalhes[[#Headers],[SÓCIO COMANDITADO]],Parâmetros[#Headers],0))*Detalhes[[#This Row],[TRABALHO ESTIMADO]]","v":{"v":7000,"d":"7,000 €"}},{"$f":"INDEX(Parâmetros[],MATCH(Detalhes[[#This Row],[TIPO DE PROJETO]],Parâmetros[TIPO DE PROJETO],0),MATCH(Detalhes[[#Headers],[ADVOGADO SOCIETÁRIO]],Parâmetros[#Headers],0))*INDEX('PARÂMETROS DO PROJETO'!$B$12:$H$12,1,MATCH(Detalhes[[#Headers],[ADVOGADO SOCIETÁRIO]],Parâmetros[#Headers],0))*Detalhes[[#This Row],[TRABALHO ESTIMADO]]","v":{"v":20000,"d":"20,000 €"}},{"$f":"INDEX(Parâmetros[],MATCH(Detalhes[[#This Row],[TIPO DE PROJETO]],Parâmetros[TIPO DE PROJETO],0),MATCH(Detalhes[[#Headers],[ADVOGADO DE DEFESA]],Parâmetros[#Headers],0))*INDEX('PARÂMETROS DO PROJETO'!$B$12:$H$12,1,MATCH(Detalhes[[#Headers],[ADVOGADO DE DEFESA]],Parâmetros[#Headers],0))*Detalhes[[#This Row],[TRABALHO ESTIMADO]]","v":{"v":0,"d":"0 €"}},{"$f":"INDEX(Parâmetros[],MATCH(Detalhes[[#This Row],[TIPO DE PROJETO]],Parâmetros[TIPO DE PROJETO],0),MATCH(Detalhes[[#Headers],[ADVOGADO DE PROPRIEDADE INTELECTUAL]],Parâmetros[#Headers],0))*INDEX('PARÂMETROS DO PROJETO'!$B$12:$H$12,1,MATCH(Detalhes[[#Headers],[ADVOGADO DE PROPRIEDADE INTELECTUAL]],Parâmetros[#Headers],0))*Detalhes[[#This Row],[TRABALHO ESTIMADO]]","v":{"v":0,"d":"0 €"}},{"$f":"INDEX(Parâmetros[],MATCH(Detalhes[[#This Row],[TIPO DE PROJETO]],Parâmetros[TIPO DE PROJETO],0),MATCH(Detalhes[[#Headers],[ADVOGADO DE INSOLVÊNCIA]],Parâmetros[#Headers],0))*INDEX('PARÂMETROS DO PROJETO'!$B$12:$H$12,1,MATCH(Detalhes[[#Headers],[ADVOGADO DE INSOLVÊNCIA]],Parâmetros[#Headers],0))*Detalhes[[#This Row],[TRABALHO ESTIMADO]]","v":{"v":0,"d":"0 €"}},{"$f":"INDEX(Parâmetros[],MATCH(Detalhes[[#This Row],[TIPO DE PROJETO]],Parâmetros[TIPO DE PROJETO],0),MATCH(Detalhes[[#Headers],[SERVIÇOS ADMINISTRATIVOS]],Parâmetros[#Headers],0))*INDEX('PARÂMETROS DO PROJETO'!$B$12:$H$12,1,MATCH(Detalhes[[#Headers],[SERVIÇOS ADMINISTRATIVOS]],Parâmetros[#Headers],0))*Detalhes[[#This Row],[TRABALHO ESTIMADO]]","v":{"v":12500,"d":"12,500 €"}},{"$f":"INDEX(Parâmetros[],MATCH(Detalhes[[#This Row],[TIPO DE PROJETO]],Parâmetros[TIPO DE PROJETO],0),MATCH(Detalhes[[#Headers],[SÓCIO COMANDITADO]],Parâmetros[#Headers],0))*INDEX('PARÂMETROS DO PROJETO'!$B$12:$H$12,1,MATCH(Detalhes[[#Headers],[SÓCIO COMANDITADO]],Parâmetros[#Headers],0))*Detalhes[[#This Row],[TRABALHO REAL]]","v":{"v":7700,"d":"7,700 €"}},{"$f":"INDEX(Parâmetros[],MATCH(Detalhes[[#This Row],[TIPO DE PROJETO]],Parâmetros[TIPO DE PROJETO],0),MATCH(Detalhes[[#Headers],[ADVOGADO SOCIETÁRIO]],Parâmetros[#Headers],0))*INDEX('PARÂMETROS DO PROJETO'!$B$12:$H$12,1,MATCH(Detalhes[[#Headers],[ADVOGADO SOCIETÁRIO]],Parâmetros[#Headers],0))*Detalhes[[#This Row],[TRABALHO REAL]]","v":{"v":22000,"d":"22,000 €"}},{"$f":"INDEX(Parâmetros[],MATCH(Detalhes[[#This Row],[TIPO DE PROJETO]],Parâmetros[TIPO DE PROJETO],0),MATCH(Detalhes[[#Headers],[ADVOGADO DE DEFESA]],Parâmetros[#Headers],0))*INDEX('PARÂMETROS DO PROJETO'!$B$12:$H$12,1,MATCH(Detalhes[[#Headers],[ADVOGADO DE DEFESA]],Parâmetros[#Headers],0))*Detalhes[[#This Row],[TRABALHO REAL]]","v":{"v":0,"d":"0 €"}},{"$f":"INDEX(Parâmetros[],MATCH(Detalhes[[#This Row],[TIPO DE PROJETO]],Parâmetros[TIPO DE PROJETO],0),MATCH(Detalhes[[#Headers],[ADVOGADO DE PROPRIEDADE INTELECTUAL]],Parâmetros[#Headers],0))*INDEX('PARÂMETROS DO PROJETO'!$B$12:$H$12,1,MATCH(Detalhes[[#Headers],[ADVOGADO DE PROPRIEDADE INTELECTUAL]],Parâmetros[#Headers],0))*Detalhes[[#This Row],[TRABALHO REAL]]","v":{"v":0,"d":"0 €"}},{"$f":"INDEX(Parâmetros[],MATCH(Detalhes[[#This Row],[TIPO DE PROJETO]],Parâmetros[TIPO DE PROJETO],0),MATCH(Detalhes[[#Headers],[ADVOGADO DE INSOLVÊNCIA]],Parâmetros[#Headers],0))*INDEX('PARÂMETROS DO PROJETO'!$B$12:$H$12,1,MATCH(Detalhes[[#Headers],[ADVOGADO DE INSOLVÊNCIA]],Parâmetros[#Headers],0))*Detalhes[[#This Row],[TRABALHO REAL]]","v":{"v":0,"d":"0 €"}},{"$f":"INDEX(Parâmetros[],MATCH(Detalhes[[#This Row],[TIPO DE PROJETO]],Parâmetros[TIPO DE PROJETO],0),MATCH(Detalhes[[#Headers],[SERVIÇOS ADMINISTRATIVOS]],Parâmetros[#Headers],0))*INDEX('PARÂMETROS DO PROJETO'!$B$12:$H$12,1,MATCH(Detalhes[[#Headers],[SERVIÇOS ADMINISTRATIVOS]],Parâmetros[#Headers],0))*Detalhes[[#This Row],[TRABALHO REAL]]","v":{"v":13750,"d":"13,750 €"}}]
[null,"Projeto 2","Aquisição de Empresa",{"$f":"TODAY()+30","v":"2019-03-17"},{"$f":"TODAY()+100","v":"2019-05-26"},{"$f":"TODAY()+40","v":"2019-03-27"},{"$f":"TODAY()+110","v":"2019-06-05"},400,390,{"$f":"DAYS360(Detalhes[[#This Row],[INÍCIO ESTIMADO]],Detalhes[[#This Row],[FIM ESTIMADO]],FALSE)","v":69},{"$f":"DAYS360(Detalhes[[#This Row],[INÍCIO REAL]],Detalhes[[#This Row],[FIM REAL]],FALSE)","v":68},{"$f":"INDEX(Parâmetros[],MATCH(Detalhes[[#This Row],[TIPO DE PROJETO]],Parâmetros[TIPO DE PROJETO],0),MATCH(Detalhes[[#Headers],[SÓCIO COMANDITADO]],Parâmetros[#Headers],0))*INDEX('PARÂMETROS DO PROJETO'!$B$12:$H$12,1,MATCH(Detalhes[[#Headers],[SÓCIO COMANDITADO]],Parâmetros[#Headers],0))*Detalhes[[#This Row],[TRABALHO ESTIMADO]]","v":{"v":14000,"d":"14,000 €"}},{"$f":"INDEX(Parâmetros[],MATCH(Detalhes[[#This Row],[TIPO DE PROJETO]],Parâmetros[TIPO DE PROJETO],0),MATCH(Detalhes[[#Headers],[ADVOGADO SOCIETÁRIO]],Parâmetros[#Headers],0))*INDEX('PARÂMETROS DO PROJETO'!$B$12:$H$12,1,MATCH(Detalhes[[#Headers],[ADVOGADO SOCIETÁRIO]],Parâmetros[#Headers],0))*Detalhes[[#This Row],[TRABALHO ESTIMADO]]","v":{"v":40000,"d":"40,000 €"}},{"$f":"INDEX(Parâmetros[],MATCH(Detalhes[[#This Row],[TIPO DE PROJETO]],Parâmetros[TIPO DE PROJETO],0),MATCH(Detalhes[[#Headers],[ADVOGADO DE DEFESA]],Parâmetros[#Headers],0))*INDEX('PARÂMETROS DO PROJETO'!$B$12:$H$12,1,MATCH(Detalhes[[#Headers],[ADVOGADO DE DEFESA]],Parâmetros[#Headers],0))*Detalhes[[#This Row],[TRABALHO ESTIMADO]]","v":{"v":0,"d":"0 €"}},{"$f":"INDEX(Parâmetros[],MATCH(Detalhes[[#This Row],[TIPO DE PROJETO]],Parâmetros[TIPO DE PROJETO],0),MATCH(Detalhes[[#Headers],[ADVOGADO DE PROPRIEDADE INTELECTUAL]],Parâmetros[#Headers],0))*INDEX('PARÂMETROS DO PROJETO'!$B$12:$H$12,1,MATCH(Detalhes[[#Headers],[ADVOGADO DE PROPRIEDADE INTELECTUAL]],Parâmetros[#Headers],0))*Detalhes[[#This Row],[TRABALHO ESTIMADO]]","v":{"v":11000,"d":"11,000 €"}},{"$f":"INDEX(Parâmetros[],MATCH(Detalhes[[#This Row],[TIPO DE PROJETO]],Parâmetros[TIPO DE PROJETO],0),MATCH(Detalhes[[#Headers],[ADVOGADO DE INSOLVÊNCIA]],Parâmetros[#Headers],0))*INDEX('PARÂMETROS DO PROJETO'!$B$12:$H$12,1,MATCH(Detalhes[[#Headers],[ADVOGADO DE INSOLVÊNCIA]],Parâmetros[#Headers],0))*Detalhes[[#This Row],[TRABALHO ESTIMADO]]","v":{"v":0,"d":"0 €"}},{"$f":"INDEX(Parâmetros[],MATCH(Detalhes[[#This Row],[TIPO DE PROJETO]],Parâmetros[TIPO DE PROJETO],0),MATCH(Detalhes[[#Headers],[SERVIÇOS ADMINISTRATIVOS]],Parâmetros[#Headers],0))*INDEX('PARÂMETROS DO PROJETO'!$B$12:$H$12,1,MATCH(Detalhes[[#Headers],[SERVIÇOS ADMINISTRATIVOS]],Parâmetros[#Headers],0))*Detalhes[[#This Row],[TRABALHO ESTIMADO]]","v":{"v":20000,"d":"20,000 €"}},{"$f":"INDEX(Parâmetros[],MATCH(Detalhes[[#This Row],[TIPO DE PROJETO]],Parâmetros[TIPO DE PROJETO],0),MATCH(Detalhes[[#Headers],[SÓCIO COMANDITADO]],Parâmetros[#Headers],0))*INDEX('PARÂMETROS DO PROJETO'!$B$12:$H$12,1,MATCH(Detalhes[[#Headers],[SÓCIO COMANDITADO]],Parâmetros[#Headers],0))*Detalhes[[#This Row],[TRABALHO REAL]]","v":{"v":13650,"d":"13,650 €"}},{"$f":"INDEX(Parâmetros[],MATCH(Detalhes[[#This Row],[TIPO DE PROJETO]],Parâmetros[TIPO DE PROJETO],0),MATCH(Detalhes[[#Headers],[ADVOGADO SOCIETÁRIO]],Parâmetros[#Headers],0))*INDEX('PARÂMETROS DO PROJETO'!$B$12:$H$12,1,MATCH(Detalhes[[#Headers],[ADVOGADO SOCIETÁRIO]],Parâmetros[#Headers],0))*Detalhes[[#This Row],[TRABALHO REAL]]","v":{"v":39000,"d":"39,000 €"}},{"$f":"INDEX(Parâmetros[],MATCH(Detalhes[[#This Row],[TIPO DE PROJETO]],Parâmetros[TIPO DE PROJETO],0),MATCH(Detalhes[[#Headers],[ADVOGADO DE DEFESA]],Parâmetros[#Headers],0))*INDEX('PARÂMETROS DO PROJETO'!$B$12:$H$12,1,MATCH(Detalhes[[#Headers],[ADVOGADO DE DEFESA]],Parâmetros[#Headers],0))*Detalhes[[#This Row],[TRABALHO REAL]]","v":{"v":0,"d":"0 €"}},{"$f":"INDEX(Parâmetros[],MATCH(Detalhes[[#This Row],[TIPO DE PROJETO]],Parâmetros[TIPO DE PROJETO],0),MATCH(Detalhes[[#Headers],[ADVOGADO DE PROPRIEDADE INTELECTUAL]],Parâmetros[#Headers],0))*INDEX('PARÂMETROS DO PROJETO'!$B$12:$H$12,1,MATCH(Detalhes[[#Headers],[ADVOGADO DE PROPRIEDADE INTELECTUAL]],Parâmetros[#Headers],0))*Detalhes[[#This Row],[TRABALHO REAL]]","v":{"v":10725,"d":"10,725 €"}},{"$f":"INDEX(Parâmetros[],MATCH(Detalhes[[#This Row],[TIPO DE PROJETO]],Parâmetros[TIPO DE PROJETO],0),MATCH(Detalhes[[#Headers],[ADVOGADO DE INSOLVÊNCIA]],Parâmetros[#Headers],0))*INDEX('PARÂMETROS DO PROJETO'!$B$12:$H$12,1,MATCH(Detalhes[[#Headers],[ADVOGADO DE INSOLVÊNCIA]],Parâmetros[#Headers],0))*Detalhes[[#This Row],[TRABALHO REAL]]","v":{"v":0,"d":"0 €"}},{"$f":"INDEX(Parâmetros[],MATCH(Detalhes[[#This Row],[TIPO DE PROJETO]],Parâmetros[TIPO DE PROJETO],0),MATCH(Detalhes[[#Headers],[SERVIÇOS ADMINISTRATIVOS]],Parâmetros[#Headers],0))*INDEX('PARÂMETROS DO PROJETO'!$B$12:$H$12,1,MATCH(Detalhes[[#Headers],[SERVIÇOS ADMINISTRATIVOS]],Parâmetros[#Headers],0))*Detalhes[[#This Row],[TRABALHO REAL]]","v":{"v":19500,"d":"19,500 €"}}]
[null,"Projeto 3","Defesa de Responsabilidade por Produto",{"$f":"TODAY()+150","v":"2019-07-15"},{"$f":"TODAY()+150","v":"2019-07-15"},{"$f":"TODAY()+150","v":"2019-07-15"},{"$f":"TODAY()+170","v":"2019-08-04"},500,500,{"$f":"DAYS360(Detalhes[[#This Row],[INÍCIO ESTIMADO]],Detalhes[[#This Row],[FIM ESTIMADO]],FALSE)","v":0},{"$f":"DAYS360(Detalhes[[#This Row],[INÍCIO REAL]],Detalhes[[#This Row],[FIM REAL]],FALSE)","v":19},{"$f":"INDEX(Parâmetros[],MATCH(Detalhes[[#This Row],[TIPO DE PROJETO]],Parâmetros[TIPO DE PROJETO],0),MATCH(Detalhes[[#Headers],[SÓCIO COMANDITADO]],Parâmetros[#Headers],0))*INDEX('PARÂMETROS DO PROJETO'!$B$12:$H$12,1,MATCH(Detalhes[[#Headers],[SÓCIO COMANDITADO]],Parâmetros[#Headers],0))*Detalhes[[#This Row],[TRABALHO ESTIMADO]]","v":{"v":35000,"d":"35,000 €"}},{"$f":"INDEX(Parâmetros[],MATCH(Detalhes[[#This Row],[TIPO DE PROJETO]],Parâmetros[TIPO DE PROJETO],0),MATCH(Detalhes[[#Headers],[ADVOGADO SOCIETÁRIO]],Parâmetros[#Headers],0))*INDEX('PARÂMETROS DO PROJETO'!$B$12:$H$12,1,MATCH(Detalhes[[#Headers],[ADVOGADO SOCIETÁRIO]],Parâmetros[#Headers],0))*Detalhes[[#This Row],[TRABALHO ESTIMADO]]","v":{"v":0,"d":"0 €"}},{"$f":"INDEX(Parâmetros[],MATCH(Detalhes[[#This Row],[TIPO DE PROJETO]],Parâmetros[TIPO DE PROJETO],0),MATCH(Detalhes[[#Headers],[ADVOGADO DE DEFESA]],Parâmetros[#Headers],0))*INDEX('PARÂMETROS DO PROJETO'!$B$12:$H$12,1,MATCH(Detalhes[[#Headers],[ADVOGADO DE DEFESA]],Parâmetros[#Headers],0))*Detalhes[[#This Row],[TRABALHO ESTIMADO]]","v":{"v":75000,"d":"75,000 €"}},{"$f":"INDEX(Parâmetros[],MATCH(Detalhes[[#This Row],[TIPO DE PROJETO]],Parâmetros[TIPO DE PROJETO],0),MATCH(Detalhes[[#Headers],[ADVOGADO DE PROPRIEDADE INTELECTUAL]],Parâmetros[#Headers],0))*INDEX('PARÂMETROS DO PROJETO'!$B$12:$H$12,1,MATCH(Detalhes[[#Headers],[ADVOGADO DE PROPRIEDADE INTELECTUAL]],Parâmetros[#Headers],0))*Detalhes[[#This Row],[TRABALHO ESTIMADO]]","v":{"v":0,"d":"0 €"}},{"$f":"INDEX(Parâmetros[],MATCH(Detalhes[[#This Row],[TIPO DE PROJETO]],Parâmetros[TIPO DE PROJETO],0),MATCH(Detalhes[[#Headers],[ADVOGADO DE INSOLVÊNCIA]],Parâmetros[#Headers],0))*INDEX('PARÂMETROS DO PROJETO'!$B$12:$H$12,1,MATCH(Detalhes[[#Headers],[ADVOGADO DE INSOLVÊNCIA]],Parâmetros[#Headers],0))*Detalhes[[#This Row],[TRABALHO ESTIMADO]]","v":{"v":0,"d":"0 €"}},{"$f":"INDEX(Parâmetros[],MATCH(Detalhes[[#This Row],[TIPO DE PROJETO]],Parâmetros[TIPO DE PROJETO],0),MATCH(Detalhes[[#Headers],[SERVIÇOS ADMINISTRATIVOS]],Parâmetros[#Headers],0))*INDEX('PARÂMETROS DO PROJETO'!$B$12:$H$12,1,MATCH(Detalhes[[#Headers],[SERVIÇOS ADMINISTRATIVOS]],Parâmetros[#Headers],0))*Detalhes[[#This Row],[TRABALHO ESTIMADO]]","v":{"v":18750,"d":"18,750 €"}},{"$f":"INDEX(Parâmetros[],MATCH(Detalhes[[#This Row],[TIPO DE PROJETO]],Parâmetros[TIPO DE PROJETO],0),MATCH(Detalhes[[#Headers],[SÓCIO COMANDITADO]],Parâmetros[#Headers],0))*INDEX('PARÂMETROS DO PROJETO'!$B$12:$H$12,1,MATCH(Detalhes[[#Headers],[SÓCIO COMANDITADO]],Parâmetros[#Headers],0))*Detalhes[[#This Row],[TRABALHO REAL]]","v":{"v":35000,"d":"35,000 €"}},{"$f":"INDEX(Parâmetros[],MATCH(Detalhes[[#This Row],[TIPO DE PROJETO]],Parâmetros[TIPO DE PROJETO],0),MATCH(Detalhes[[#Headers],[ADVOGADO SOCIETÁRIO]],Parâmetros[#Headers],0))*INDEX('PARÂMETROS DO PROJETO'!$B$12:$H$12,1,MATCH(Detalhes[[#Headers],[ADVOGADO SOCIETÁRIO]],Parâmetros[#Headers],0))*Detalhes[[#This Row],[TRABALHO REAL]]","v":{"v":0,"d":"0 €"}},{"$f":"INDEX(Parâmetros[],MATCH(Detalhes[[#This Row],[TIPO DE PROJETO]],Parâmetros[TIPO DE PROJETO],0),MATCH(Detalhes[[#Headers],[ADVOGADO DE DEFESA]],Parâmetros[#Headers],0))*INDEX('PARÂMETROS DO PROJETO'!$B$12:$H$12,1,MATCH(Detalhes[[#Headers],[ADVOGADO DE DEFESA]],Parâmetros[#Headers],0))*Detalhes[[#This Row],[TRABALHO REAL]]","v":{"v":75000,"d":"75,000 €"}},{"$f":"INDEX(Parâmetros[],MATCH(Detalhes[[#This Row],[TIPO DE PROJETO]],Parâmetros[TIPO DE PROJETO],0),MATCH(Detalhes[[#Headers],[ADVOGADO DE PROPRIEDADE INTELECTUAL]],Parâmetros[#Headers],0))*INDEX('PARÂMETROS DO PROJETO'!$B$12:$H$12,1,MATCH(Detalhes[[#Headers],[ADVOGADO DE PROPRIEDADE INTELECTUAL]],Parâmetros[#Headers],0))*Detalhes[[#This Row],[TRABALHO REAL]]","v":{"v":0,"d":"0 €"}},{"$f":"INDEX(Parâmetros[],MATCH(Detalhes[[#This Row],[TIPO DE PROJETO]],Parâmetros[TIPO DE PROJETO],0),MATCH(Detalhes[[#Headers],[ADVOGADO DE INSOLVÊNCIA]],Parâmetros[#Headers],0))*INDEX('PARÂMETROS DO PROJETO'!$B$12:$H$12,1,MATCH(Detalhes[[#Headers],[ADVOGADO DE INSOLVÊNCIA]],Parâmetros[#Headers],0))*Detalhes[[#This Row],[TRABALHO REAL]]","v":{"v":0,"d":"0 €"}},{"$f":"INDEX(Parâmetros[],MATCH(Detalhes[[#This Row],[TIPO DE PROJETO]],Parâmetros[TIPO DE PROJETO],0),MATCH(Detalhes[[#Headers],[SERVIÇOS ADMINISTRATIVOS]],Parâmetros[#Headers],0))*INDEX('PARÂMETROS DO PROJETO'!$B$12:$H$12,1,MATCH(Detalhes[[#Headers],[SERVIÇOS ADMINISTRATIVOS]],Parâmetros[#Headers],0))*Detalhes[[#This Row],[TRABALHO REAL]]","v":{"v":18750,"d":"18,750 €"}}]
[null,"Projeto 4","Aplicação de Patente",{"$f":"TODAY()+200","v":"2019-09-03"},{"$f":"TODAY()+230","v":"2019-10-03"},{"$f":"TODAY()+230","v":"2019-10-03"},{"$f":"TODAY()+230","v":"2019-10-03"},150,145,{"$f":"DAYS360(Detalhes[[#This Row],[INÍCIO ESTIMADO]],Detalhes[[#This Row],[FIM ESTIMADO]],FALSE)","v":30},{"$f":"DAYS360(Detalhes[[#This Row],[INÍCIO REAL]],Detalhes[[#This Row],[FIM REAL]],FALSE)","v":0},{"$f":"INDEX(Parâmetros[],MATCH(Detalhes[[#This Row],[TIPO DE PROJETO]],Parâmetros[TIPO DE PROJETO],0),MATCH(Detalhes[[#Headers],[SÓCIO COMANDITADO]],Parâmetros[#Headers],0))*INDEX('PARÂMETROS DO PROJETO'!$B$12:$H$12,1,MATCH(Detalhes[[#Headers],[SÓCIO COMANDITADO]],Parâmetros[#Headers],0))*Detalhes[[#This Row],[TRABALHO ESTIMADO]]","v":{"v":5250,"d":"5,250 €"}},{"$f":"INDEX(Parâmetros[],MATCH(Detalhes[[#This Row],[TIPO DE PROJETO]],Parâmetros[TIPO DE PROJETO],0),MATCH(Detalhes[[#Headers],[ADVOGADO SOCIETÁRIO]],Parâmetros[#Headers],0))*INDEX('PARÂMETROS DO PROJETO'!$B$12:$H$12,1,MATCH(Detalhes[[#Headers],[ADVOGADO SOCIETÁRIO]],Parâmetros[#Headers],0))*Detalhes[[#This Row],[TRABALHO ESTIMADO]]","v":{"v":0,"d":"0 €"}},{"$f":"INDEX(Parâmetros[],MATCH(Detalhes[[#This Row],[TIPO DE PROJETO]],Parâmetros[TIPO DE PROJETO],0),MATCH(Detalhes[[#Headers],[ADVOGADO DE DEFESA]],Parâmetros[#Headers],0))*INDEX('PARÂMETROS DO PROJETO'!$B$12:$H$12,1,MATCH(Detalhes[[#Headers],[ADVOGADO DE DEFESA]],Parâmetros[#Headers],0))*Detalhes[[#This Row],[TRABALHO ESTIMADO]]","v":{"v":0,"d":"0 €"}},{"$f":"INDEX(Parâmetros[],MATCH(Detalhes[[#This Row],[TIPO DE PROJETO]],Parâmetros[TIPO DE PROJETO],0),MATCH(Detalhes[[#Headers],[ADVOGADO DE PROPRIEDADE INTELECTUAL]],Parâmetros[#Headers],0))*INDEX('PARÂMETROS DO PROJETO'!$B$12:$H$12,1,MATCH(Detalhes[[#Headers],[ADVOGADO DE PROPRIEDADE INTELECTUAL]],Parâmetros[#Headers],0))*Detalhes[[#This Row],[TRABALHO ESTIMADO]]","v":{"v":24750,"d":"24,750 €"}},{"$f":"INDEX(Parâmetros[],MATCH(Detalhes[[#This Row],[TIPO DE PROJETO]],Parâmetros[TIPO DE PROJETO],0),MATCH(Detalhes[[#Headers],[ADVOGADO DE INSOLVÊNCIA]],Parâmetros[#Headers],0))*INDEX('PARÂMETROS DO PROJETO'!$B$12:$H$12,1,MATCH(Detalhes[[#Headers],[ADVOGADO DE INSOLVÊNCIA]],Parâmetros[#Headers],0))*Detalhes[[#This Row],[TRABALHO ESTIMADO]]","v":{"v":0,"d":"0 €"}},{"$f":"INDEX(Parâmetros[],MATCH(Detalhes[[#This Row],[TIPO DE PROJETO]],Parâmetros[TIPO DE PROJETO],0),MATCH(Detalhes[[#Headers],[SERVIÇOS ADMINISTRATIVOS]],Parâmetros[#Headers],0))*INDEX('PARÂMETROS DO PROJETO'!$B$12:$H$12,1,MATCH(Detalhes[[#Headers],[SERVIÇOS ADMINISTRATIVOS]],Parâmetros[#Headers],0))*Detalhes[[#This Row],[TRABALHO ESTIMADO]]","v":{"v":5625,"d":"5,625 €"}},{"$f":"INDEX(Parâmetros[],MATCH(Detalhes[[#This Row],[TIPO DE PROJETO]],Parâmetros[TIPO DE PROJETO],0),MATCH(Detalhes[[#Headers],[SÓCIO COMANDITADO]],Parâmetros[#Headers],0))*INDEX('PARÂMETROS DO PROJETO'!$B$12:$H$12,1,MATCH(Detalhes[[#Headers],[SÓCIO COMANDITADO]],Parâmetros[#Headers],0))*Detalhes[[#This Row],[TRABALHO REAL]]","v":{"v":5075,"d":"5,075 €"}},{"$f":"INDEX(Parâmetros[],MATCH(Detalhes[[#This Row],[TIPO DE PROJETO]],Parâmetros[TIPO DE PROJETO],0),MATCH(Detalhes[[#Headers],[ADVOGADO SOCIETÁRIO]],Parâmetros[#Headers],0))*INDEX('PARÂMETROS DO PROJETO'!$B$12:$H$12,1,MATCH(Detalhes[[#Headers],[ADVOGADO SOCIETÁRIO]],Parâmetros[#Headers],0))*Detalhes[[#This Row],[TRABALHO REAL]]","v":{"v":0,"d":"0 €"}},{"$f":"INDEX(Parâmetros[],MATCH(Detalhes[[#This Row],[TIPO DE PROJETO]],Parâmetros[TIPO DE PROJETO],0),MATCH(Detalhes[[#Headers],[ADVOGADO DE DEFESA]],Parâmetros[#Headers],0))*INDEX('PARÂMETROS DO PROJETO'!$B$12:$H$12,1,MATCH(Detalhes[[#Headers],[ADVOGADO DE DEFESA]],Parâmetros[#Headers],0))*Detalhes[[#This Row],[TRABALHO REAL]]","v":{"v":0,"d":"0 €"}},{"$f":"INDEX(Parâmetros[],MATCH(Detalhes[[#This Row],[TIPO DE PROJETO]],Parâmetros[TIPO DE PROJETO],0),MATCH(Detalhes[[#Headers],[ADVOGADO DE PROPRIEDADE INTELECTUAL]],Parâmetros[#Headers],0))*INDEX('PARÂMETROS DO PROJETO'!$B$12:$H$12,1,MATCH(Detalhes[[#Headers],[ADVOGADO DE PROPRIEDADE INTELECTUAL]],Parâmetros[#Headers],0))*Detalhes[[#This Row],[TRABALHO REAL]]","v":{"v":23925,"d":"23,925 €"}},{"$f":"INDEX(Parâmetros[],MATCH(Detalhes[[#This Row],[TIPO DE PROJETO]],Parâmetros[TIPO DE PROJETO],0),MATCH(Detalhes[[#Headers],[ADVOGADO DE INSOLVÊNCIA]],Parâmetros[#Headers],0))*INDEX('PARÂMETROS DO PROJETO'!$B$12:$H$12,1,MATCH(Detalhes[[#Headers],[ADVOGADO DE INSOLVÊNCIA]],Parâmetros[#Headers],0))*Detalhes[[#This Row],[TRABALHO REAL]]","v":{"v":0,"d":"0 €"}},{"$f":"INDEX(Parâmetros[],MATCH(Detalhes[[#This Row],[TIPO DE PROJETO]],Parâmetros[TIPO DE PROJETO],0),MATCH(Detalhes[[#Headers],[SERVIÇOS ADMINISTRATIVOS]],Parâmetros[#Headers],0))*INDEX('PARÂMETROS DO PROJETO'!$B$12:$H$12,1,MATCH(Detalhes[[#Headers],[SERVIÇOS ADMINISTRATIVOS]],Parâmetros[#Headers],0))*Detalhes[[#This Row],[TRABALHO REAL]]","v":{"v":5437.5,"d":"5,438 €"}}]
[null,"Projeto 5","Ação Judicial de Colaborador",{"$f":"TODAY()+220","v":"2019-09-23"},{"$f":"TODAY()+250","v":"2019-10-23"},{"$f":"TODAY()+230","v":"2019-10-03"},{"$f":"TODAY()+259","v":"2019-11-01"},250,255,{"$f":"DAYS360(Detalhes[[#This Row],[INÍCIO ESTIMADO]],Detalhes[[#This Row],[FIM ESTIMADO]],FALSE)","v":30},{"$f":"DAYS360(Detalhes[[#This Row],[INÍCIO REAL]],Detalhes[[#This Row],[FIM REAL]],FALSE)","v":28},{"$f":"INDEX(Parâmetros[],MATCH(Detalhes[[#This Row],[TIPO DE PROJETO]],Parâmetros[TIPO DE PROJETO],0),MATCH(Detalhes[[#Headers],[SÓCIO COMANDITADO]],Parâmetros[#Headers],0))*INDEX('PARÂMETROS DO PROJETO'!$B$12:$H$12,1,MATCH(Detalhes[[#Headers],[SÓCIO COMANDITADO]],Parâmetros[#Headers],0))*Detalhes[[#This Row],[TRABALHO ESTIMADO]]","v":{"v":17500,"d":"17,500 €"}},{"$f":"INDEX(Parâmetros[],MATCH(Detalhes[[#This Row],[TIPO DE PROJETO]],Parâmetros[TIPO DE PROJETO],0),MATCH(Detalhes[[#Headers],[ADVOGADO SOCIETÁRIO]],Parâmetros[#Headers],0))*INDEX('PARÂMETROS DO PROJETO'!$B$12:$H$12,1,MATCH(Detalhes[[#Headers],[ADVOGADO SOCIETÁRIO]],Parâmetros[#Headers],0))*Detalhes[[#This Row],[TRABALHO ESTIMADO]]","v":{"v":6250,"d":"6,250 €"}},{"$f":"INDEX(Parâmetros[],MATCH(Detalhes[[#This Row],[TIPO DE PROJETO]],Parâmetros[TIPO DE PROJETO],0),MATCH(Detalhes[[#Headers],[ADVOGADO DE DEFESA]],Parâmetros[#Headers],0))*INDEX('PARÂMETROS DO PROJETO'!$B$12:$H$12,1,MATCH(Detalhes[[#Headers],[ADVOGADO DE DEFESA]],Parâmetros[#Headers],0))*Detalhes[[#This Row],[TRABALHO ESTIMADO]]","v":{"v":30000,"d":"30,000 €"}},{"$f":"INDEX(Parâmetros[],MATCH(Detalhes[[#This Row],[TIPO DE PROJETO]],Parâmetros[TIPO DE PROJETO],0),MATCH(Detalhes[[#Headers],[ADVOGADO DE PROPRIEDADE INTELECTUAL]],Parâmetros[#Headers],0))*INDEX('PARÂMETROS DO PROJETO'!$B$12:$H$12,1,MATCH(Detalhes[[#Headers],[ADVOGADO DE PROPRIEDADE INTELECTUAL]],Parâmetros[#Headers],0))*Detalhes[[#This Row],[TRABALHO ESTIMADO]]","v":{"v":0,"d":"0 €"}},{"$f":"INDEX(Parâmetros[],MATCH(Detalhes[[#This Row],[TIPO DE PROJETO]],Parâmetros[TIPO DE PROJETO],0),MATCH(Detalhes[[#Headers],[ADVOGADO DE INSOLVÊNCIA]],Parâmetros[#Headers],0))*INDEX('PARÂMETROS DO PROJETO'!$B$12:$H$12,1,MATCH(Detalhes[[#Headers],[ADVOGADO DE INSOLVÊNCIA]],Parâmetros[#Headers],0))*Detalhes[[#This Row],[TRABALHO ESTIMADO]]","v":{"v":0,"d":"0 €"}},{"$f":"INDEX(Parâmetros[],MATCH(Detalhes[[#This Row],[TIPO DE PROJETO]],Parâmetros[TIPO DE PROJETO],0),MATCH(Detalhes[[#Headers],[SERVIÇOS ADMINISTRATIVOS]],Parâmetros[#Headers],0))*INDEX('PARÂMETROS DO PROJETO'!$B$12:$H$12,1,MATCH(Detalhes[[#Headers],[SERVIÇOS ADMINISTRATIVOS]],Parâmetros[#Headers],0))*Detalhes[[#This Row],[TRABALHO ESTIMADO]]","v":{"v":9375,"d":"9,375 €"}},{"$f":"INDEX(Parâmetros[],MATCH(Detalhes[[#This Row],[TIPO DE PROJETO]],Parâmetros[TIPO DE PROJETO],0),MATCH(Detalhes[[#Headers],[SÓCIO COMANDITADO]],Parâmetros[#Headers],0))*INDEX('PARÂMETROS DO PROJETO'!$B$12:$H$12,1,MATCH(Detalhes[[#Headers],[SÓCIO COMANDITADO]],Parâmetros[#Headers],0))*Detalhes[[#This Row],[TRABALHO REAL]]","v":{"v":17850,"d":"17,850 €"}},{"$f":"INDEX(Parâmetros[],MATCH(Detalhes[[#This Row],[TIPO DE PROJETO]],Parâmetros[TIPO DE PROJETO],0),MATCH(Detalhes[[#Headers],[ADVOGADO SOCIETÁRIO]],Parâmetros[#Headers],0))*INDEX('PARÂMETROS DO PROJETO'!$B$12:$H$12,1,MATCH(Detalhes[[#Headers],[ADVOGADO SOCIETÁRIO]],Parâmetros[#Headers],0))*Detalhes[[#This Row],[TRABALHO REAL]]","v":{"v":6375,"d":"6,375 €"}},{"$f":"INDEX(Parâmetros[],MATCH(Detalhes[[#This Row],[TIPO DE PROJETO]],Parâmetros[TIPO DE PROJETO],0),MATCH(Detalhes[[#Headers],[ADVOGADO DE DEFESA]],Parâmetros[#Headers],0))*INDEX('PARÂMETROS DO PROJETO'!$B$12:$H$12,1,MATCH(Detalhes[[#Headers],[ADVOGADO DE DEFESA]],Parâmetros[#Headers],0))*Detalhes[[#This Row],[TRABALHO REAL]]","v":{"v":30600,"d":"30,600 €"}},{"$f":"INDEX(Parâmetros[],MATCH(Detalhes[[#This Row],[TIPO DE PROJETO]],Parâmetros[TIPO DE PROJETO],0),MATCH(Detalhes[[#Headers],[ADVOGADO DE PROPRIEDADE INTELECTUAL]],Parâmetros[#Headers],0))*INDEX('PARÂMETROS DO PROJETO'!$B$12:$H$12,1,MATCH(Detalhes[[#Headers],[ADVOGADO DE PROPRIEDADE INTELECTUAL]],Parâmetros[#Headers],0))*Detalhes[[#This Row],[TRABALHO REAL]]","v":{"v":0,"d":"0 €"}},{"$f":"INDEX(Parâmetros[],MATCH(Detalhes[[#This Row],[TIPO DE PROJETO]],Parâmetros[TIPO DE PROJETO],0),MATCH(Detalhes[[#Headers],[ADVOGADO DE INSOLVÊNCIA]],Parâmetros[#Headers],0))*INDEX('PARÂMETROS DO PROJETO'!$B$12:$H$12,1,MATCH(Detalhes[[#Headers],[ADVOGADO DE INSOLVÊNCIA]],Parâmetros[#Headers],0))*Detalhes[[#This Row],[TRABALHO REAL]]","v":{"v":0,"d":"0 €"}},{"$f":"INDEX(Parâmetros[],MATCH(Detalhes[[#This Row],[TIPO DE PROJETO]],Parâmetros[TIPO DE PROJETO],0),MATCH(Detalhes[[#Headers],[SERVIÇOS ADMINISTRATIVOS]],Parâmetros[#Headers],0))*INDEX('PARÂMETROS DO PROJETO'!$B$12:$H$12,1,MATCH(Detalhes[[#Headers],[SERVIÇOS ADMINISTRATIVOS]],Parâmetros[#Headers],0))*Detalhes[[#This Row],[TRABALHO REAL]]","v":{"v":9562.5,"d":"9,563 €"}}]
[null,"TOTAL",{"$nulls":5},{"$f":"SUBTOTAL(109,Detalhes[TRABALHO ESTIMADO])","v":1500},{"$f":"SUBTOTAL(109,Detalhes[TRABALHO REAL])","v":1510},{"$f":"SUBTOTAL(109,Detalhes[DURAÇÃO ESTIMADA])","v":190},{"$f":"SUBTOTAL(109,Detalhes[DURAÇÃO REAL])","v":171}]

{"sheet":"TOTAIS DO PROJETO","index":3,"n_rows":11,"n_cols":16,"rows_kept":11,"merged":[[3,2,3,7],[3,8,3,13],[3,15,14,19]]}
["Obtenha os Totais do Projeto nesta folha de cálculo. O Nome da Empresa é atualizado automaticamente na célula à direita. Encontram-se instruções úteis nas células desta coluna. Prima a Seta Para Baixo para começar.",{"$f":"'PARÂMETROS DO PROJETO'!B1","v":"Nome da Empresa"}]
["O título desta folha de cálculo está na célula à direita.",{"$f":"'PARÂMETROS DO PROJETO'!B2","v":"Planeamento de Projetos para Sociedades de Advogados"}]
["A mensagem de confidencialidade está na célula à direita.",{"$f":"'PARÂMETROS DO PROJETO'!B3","v":"Nome da Empresa Confidencial"}]
["A etiqueta Estimado está na célula C4, a etiqueta Real está na célula I4 e a sugestão com as Informações está na célula P4.",null,"ESTIMADO",{"$nulls":5},"REAL",{"$nulls":6},"INFORMAÇÕES: \nEsta tabela dinâmica não será atualizada automaticamente.  Para atualizar, selecione-a (qualquer célula na tabela dinâmica) e, no separador Analisar das Ferramentas de Tabela Dinâmica do friso, selecione Atualizar.  Em alternativa, prima Shift+F10 ao selecionar a tabela dinâmica e selecionar Atualizar."]
["A tabela dinâmica que começa na célula à direita é atualizada automaticamente","NOME DO PROJETO","SÓCIO COMANDITADO ","SOCIETÁRIO ","ADVOGADO DE DEFESA ","PROPRIEDADE INTELECTUAL ","INSOLVÊNCIA ","SERVIÇOS ADMINISTRATIVOS ","SÓCIO COMANDITADO  ","SOCIETÁRIO  ","ADVOGADO DE DEFESA  ","INSOLVÊNCIA  ","PROPRIEDADE INTELECTUAL  ","SERVIÇOS ADMINISTRATIVOS  "]
[null,"Projeto 1",{"v":7000,"d":"7,000.00 €"},{"v":20000,"d":"20,000.00 €"},{"v":0,"d":"0.00 €"},{"v":0,"d":"0.00 €"},{"v":0,"d":"0.00 €"},{"v":12500,"d":"12,500.00 €"},{"v":7700,"d":"7,700.00 €"},{"v":22000,"d":"22,000.00 €"},{"v":0,"d":"0.00 €"},{"v":0,"d":"0.00 €"},{"v":0,"d":"0.00 €"},{"v":13750,"d":"13,750.00 €"}]
[null,"Projeto 2",{"v":14000,"d":"14,000.00 €"},{"v":40000,"d":"40,000.00 €"},{"v":0,"d":"0.00 €"},{"v":11000,"d":"11,000.00 €"},{"v":0,"d":"0.00 €"},{"v":20000,"d":"20,000.00 €"},{"v":13650,"d":"13,650.00 €"},{"v":39000,"d":"39,000.00 €"},{"v":0,"d":"0.00 €"},{"v":10725,"d":"10,725.00 €"},{"v":0,"d":"0.00 €"},{"v":19500,"d":"19,500.00 €"}]
[null,"Projeto 3",{"v":35000,"d":"35,000.00 €"},{"v":0,"d":"0.00 €"},{"v":75000,"d":"75,000.00 €"},{"v":0,"d":"0.00 €"},{"v":0,"d":"0.00 €"},{"v":18750,"d":"18,750.00 €"},{"v":35000,"d":"35,000.00 €"},{"v":0,"d":"0.00 €"},{"v":75000,"d":"75,000.00 €"},{"v":0,"d":"0.00 €"},{"v":0,"d":"0.00 €"},{"v":18750,"d":"18,750.00 €"}]
[null,"Projeto 4",{"v":5250,"d":"5,250.00 €"},{"v":0,"d":"0.00 €"},{"v":0,"d":"0.00 €"},{"v":24750,"d":"24,750.00 €"},{"v":0,"d":"0.00 €"},{"v":5625,"d":"5,625.00 €"},{"v":5075,"d":"5,075.00 €"},{"v":0,"d":"0.00 €"},{"v":0,"d":"0.00 €"},{"v":23925,"d":"23,925.00 €"},{"v":0,"d":"0.00 €"},{"v":5437.5,"d":"5,437.50 €"}]
[null,"Projeto 5",{"v":17500,"d":"17,500.00 €"},{"v":6250,"d":"6,250.00 €"},{"v":30000,"d":"30,000.00 €"},{"v":0,"d":"0.00 €"},{"v":0,"d":"0.00 €"},{"v":9375,"d":"9,375.00 €"},{"v":17850,"d":"17,850.00 €"},{"v":6375,"d":"6,375.00 €"},{"v":30600,"d":"30,600.00 €"},{"v":0,"d":"0.00 €"},{"v":0,"d":"0.00 €"},{"v":9562.5,"d":"9,562.50 €"}]
[null,"Total Geral",{"v":78750,"d":"78,750.00 €"},{"v":66250,"d":"66,250.00 €"},{"v":105000,"d":"105,000.00 €"},{"v":35750,"d":"35,750.00 €"},{"v":0,"d":"0.00 €"},{"v":66250,"d":"66,250.00 €"},{"v":79275,"d":"79,275.00 €"},{"v":67375,"d":"67,375.00 €"},{"v":105600,"d":"105,600.00 €"},{"v":34650,"d":"34,650.00 €"},{"v":0,"d":"0.00 €"},{"v":67000,"d":"67,000.00 €"}]